bitfinex/quotes_SOLUSD_20240913
["timestamp","ask_amount","ask_price","bid_price","bid_amount"]
[1726253556169,0.2561221,138.09,138.05,23.902374]
[1726253556451,0.2561221,138.09,138.07,23.776884]
[1726253556646,0.2561221,138.09,138.08,1.44820558]
[1726253557153,0.2561221,138.09,138.07,23.776884]
[1726253558128,0.2561221,138.09,138.0,23.6086281]
[1726253558359,16.5756,138.08,138.0,7.5664281]
[1726253558649,16.5756,138.08,137.97,38.56906982]
[1726253558827,16.5756,138.08,137.98,7.56101145]
[1726253559028,16.5756,138.08,137.99,22.62558351]
[1726253559449,16.5756,138.08,137.99,22.14376982]
[1726253559853,16.5756,138.08,138.0,0.4834408]
[1726253560061,16.5756,138.08,138.01,23.776884]
[1726253560225,16.5756,138.08,138.02,0.48337074]
[1726253560845,16.5756,138.08,138.01,23.776884]
[1726253561140,16.5756,138.08,138.01,0.12549]
[1726253563132,16.5756,138.08,137.99,23.776884]
[1726253563460,16.5756,138.08,137.99,0.25098]
[1726253565539,0.12549,138.07,137.98,0.12549]
[1726253565855,0.12549,138.05,137.95,0.2561221]
[1726253566058,21.9826,138.06,137.96,22.14376982]
[1726253566549,0.12549,138.05,137.95,7.81184873]
[1726253566755,0.25098,138.05,137.95,7.81184873]
[1726253567856,0.25098,138.05,137.96,0.12549]
[1726253568235,0.25098,138.05,137.96,23.902374]
[1726253570436,16.5304,138.04,137.95,7.81184873]
[1726253570635,16.5304,138.04,137.95,0.2561221]
[1726253570834,0.12549,138.03,137.95,0.2561221]
[1726253571439,16.5304,138.04,137.96,0.73350483]
[1726253571639,16.5304,138.04,137.96,24.027864]
[1726253571833,16.5304,138.04,137.96,23.902374]
[1726253572143,6.3938,138.01,137.95,0.2561221]
[1726253572542,15.5485,138.0,137.95,0.2561221]
[1726253579049,15.5485,138.0,137.95,24.0330061]
[1726253579250,15.5485,138.0,137.96,0.56704938]
[1726253579449,15.5485,138.0,137.96,1.44942963]
[1726253581261,15.5485,138.0,137.97,1.44924713]
[1726253581572,22.3548,138.05,137.98,1.44839714]
[1726253581742,22.3548,138.05,137.99,1.44829217]
[1726253581942,22.3548,138.05,138.0,23.776884]
[1726253582147,22.3548,138.05,138.01,1.44776746]
[1726253582545,22.3548,138.05,138.02,1.44816001]
[1726253582846,16.1189,138.05,138.02,1.44816001]
[1726253583559,16.1189,138.05,138.02,23.776884]
[1726253583751,16.1189,138.05,138.03,1.44795017]
[1726253584066,16.1189,138.05,138.02,23.776884]
[1726253584239,16.1189,138.05,138.01,1.44774037]
[1726253584440,16.1189,138.05,138.02,1.44878681]
[1726253584640,16.1189,138.05,138.0,23.776884]
[1726253585750,22.4771,138.08,138.01,0.91551391]
[1726253586064,22.4771,138.08,138.03,0.12549]
[1726253586266,0.2561221,138.09,138.05,23.776884]
[1726253586472,0.2561221,138.09,138.06,1.44829607]
[1726253589445,0.2561221,138.09,138.07,25.22422296]
[1726253589775,0.2561221,138.09,138.08,25.22456171]
[1726253590363,0.2561221,138.09,138.08,23.776884]
[1726253590547,0.2561221,138.09,138.04,0.12549]
[1726253590743,0.2561221,138.09,138.04,24.027864]
[1726253591469,0.2561221,138.09,138.04,23.776884]
[1726253592060,0.2561221,138.09,138.01,37.86276982]
[1726253593167,0.2561221,138.09,138.02,0.12549]
[1726253593357,0.2561221,138.09,138.02,23.902374]
[1726253594948,0.1377342,138.13,138.02,23.902374]
[1726253595149,0.12549,138.12,138.04,23.776884]
[1726253595544,0.0122442,138.13,138.05,1.44827516]
[1726253595745,0.0122442,138.13,138.06,23.776884]
[1726253596050,0.0122442,138.13,138.08,23.776884]
[1726253596255,0.0122442,138.13,138.09,1.44792466]
[1726253598078,0.0122442,138.13,138.08,23.776884]
[1726253599194,0.0122442,138.13,138.05,22.14376982]
[1726253599195,0.0122442,138.13,138.06,23.776884]
[1726253601184,0.2632242,138.13,138.03,22.14376982]
[1726253601386,7.5028242,138.13,138.03,22.14376982]
[1726253601560,7.5028242,138.13,138.01,37.86276982]
[1726253602164,0.12549,138.11,138.01,37.86276982]
[1726253602359,0.25098,138.11,138.01,37.86276982]
[1726253604777,0.25098,138.11,138.02,23.776884]
[1726253608169,15.7702,138.09,138.02,23.776884]
[1726253608968,15.7702,138.09,138.02,24.0207619]
[1726253609489,7.49318,138.08,138.02,0.2438779]
[1726253609795,0.12549,138.08,138.02,0.2438779]
[1726253609972,15.7702,138.09,138.02,0.2438779]
[1726253611167,15.7702,138.09,138.02,24.0207619]
[1726253611488,15.7702,138.09,138.03,1.44841279]
[1726253611996,15.7702,138.09,138.02,24.0207619]
[1726253615815,0.12549,138.08,138.02,0.2438779]
[1726253616086,0.25098,138.08,138.02,0.2438779]
[1726253616288,7.49348,138.08,138.02,0.2438779]
[1726253617071,0.12549,138.06,138.02,0.2438779]
[1726253617277,0.25098,138.06,138.02,0.2438779]
[1726253620992,0.12549,138.08,138.02,0.2438779]
[1726253621373,15.7702,138.09,138.02,0.2438779]
[1726253621573,15.7702,138.09,138.02,1.69256002]
[1726253622387,15.7702,138.09,138.03,23.776884]
[1726253622590,15.7702,138.09,138.05,23.776884]
[1726253622795,15.7702,138.09,138.06,1.44839242]
[1726253623690,15.289,138.12,138.04,23.776884]
[1726253624907,15.289,138.12,138.03,24.0207619]
[1726253625110,15.289,138.12,138.03,0.2438779]
[1726253625405,0.25098,138.11,138.03,0.2438779]
[1726253627473,0.25098,138.11,138.04,23.776884]
[1726253627692,0.25098,138.11,138.05,1.44851668]
[1726253627908,0.25098,138.11,138.03,0.2438779]
[1726253629500,0.25098,138.11,138.04,23.776884]
[1726253631504,7.49158,138.11,138.03,0.2438779]
[1726253631880,0.25098,138.11,138.03,0.2438779]
[1726253632084,0.25098,138.11,138.03,24.0207619]
[1726253632317,0.25098,138.11,138.04,0.47135762]
[1726253632900,0.25098,138.11,138.04,24.24824162]
[1726253633098,0.25098,138.11,138.03,24.0207619]
[1726253633397,0.25098,138.11,138.03,0.2438779]
[1726253636082,7.49158,138.11,138.03,0.2438779]
[1726253636408,0.25098,138.11,138.03,0.2438779]
[1726253639910,0.25098,138.11,138.04,23.776884]
[1726253640204,0.25098,138.11,138.04,37.8984004]
[1726253640415,0.25098,138.11,138.03,0.2438779]
[1726253640805,7.49198,138.11,138.03,24.0207619]
[1726253641097,7.49198,138.11,138.03,0.2438779]
[1726253641308,0.12549,138.1,138.03,0.2438779]
[1726253642307,0.12549,138.1,138.03,24.0207619]
[1726253643291,0.12549,138.1,138.03,0.2438779]
[1726253645505,0.25098,138.11,138.04,14.1215164]
[1726253645712,0.12549,138.11,138.04,14.1215164]
[1726253646305,15.289,138.12,138.06,37.8984004]
[1726253646605,15.289,138.12,138.07,1.44821895]
[1726253646792,15.289,138.12,138.08,1.44815615]
[1726253648109,15.289,138.12,138.06,23.776884]
[1726253649311,15.289,138.12,138.03,24.0207619]
[1726253649518,0.12549,138.11,138.03,0.2438779]
[1726253649809,0.25098,138.11,138.03,0.2438779]
[1726253650996,0.25098,138.11,138.03,24.0207619]
[1726253653419,0.12549,138.1,138.03,0.2438779]
[1726253653717,0.25098,138.1,138.03,0.2438779]
[1726253653886,0.12549,138.09,138.03,0.2438779]
[1726253654086,0.25098,138.09,138.03,0.2438779]
[1726253654912,21.6308,138.08,138.03,0.2438779]
[1726253655400,0.37647,138.07,138.03,0.2438779]
[1726253656095,0.25098,138.07,138.03,0.2438779]
[1726253656303,0.12549,138.07,138.03,0.2438779]
[1726253656708,21.6308,138.08,138.03,0.2438779]
[1726253660217,21.6308,138.08,138.03,24.0207619]
[1726253660423,15.199,138.08,138.04,1.44848853]
[1726253660714,21.8232,138.12,138.05,23.776884]
[1726253661217,21.8232,138.12,138.06,1.44831154]
[1726253661715,21.8232,138.12,138.05,23.776884]
[1726253666996,0.25098,138.11,138.03,0.2438779]
[1726253668195,0.25098,138.11,138.03,24.0207619]
[1726253672200,0.25098,138.11,138.04,14.12180742]
[1726253672601,0.25098,138.11,138.05,15.57037573]
[1726253672802,0.25098,138.11,138.05,1.44856831]
[1726253673299,0.25098,138.11,138.04,14.12180742]
[1726253674001,0.25098,138.11,138.05,1.44849558]
[1726253675120,0.25098,138.11,138.04,14.12180742]
[1726253675317,0.25098,138.11,138.05,1.44849593]
[1726253676118,0.25098,138.11,138.04,14.12180742]
[1726253679612,0.25098,138.11,138.03,38.14256932]
[1726253679813,0.25098,138.11,138.03,24.0207619]
[1726253681496,0.25098,138.11,138.04,14.12180742]
[1726253681697,21.8232,138.12,138.06,37.89869142]
[1726253681901,21.8232,138.12,138.07,15.57006556]
[1726253682106,21.8232,138.12,138.08,1.44817677]
[1726253682508,21.8232,138.12,138.06,37.89869142]
[1726253683228,15.2838,138.12,138.08,14.12180742]
[1726253683620,15.2838,138.12,138.07,15.57003952]
[1726253683923,15.2838,138.12,138.06,23.776884]
[1726253684129,15.2838,138.12,138.06,25.22522502]
[1726253685327,15.2838,138.12,138.06,23.776884]
[1726253685835,15.2838,138.12,138.04,14.12180742]
[1726253686126,6.516,138.1,138.03,24.0207619]
[1726253686442,0.25098,138.08,138.03,0.2438779]
[1726253686610,0.12549,138.07,138.03,0.2438779]
[1726253688814,0.12549,138.08,138.03,0.2438779]
[1726253689319,0.25098,138.08,138.03,0.2438779]
[1726253694535,7.36849,138.07,138.03,0.2438779]
[1726253694735,0.25098,138.06,138.03,0.2438779]
[1726253694926,21.8659,138.05,138.03,0.2438779]
[1726253696636,0.12549,138.04,138.03,0.2438779]
[1726253696823,0.25098,138.04,138.03,0.2438779]
[1726253697717,0.12549,138.04,138.03,0.2438779]
[1726253697915,21.8659,138.05,138.03,0.2438779]
[1726253708825,15.3229,138.05,138.03,0.2438779]
[1726253709020,0.12549,138.06,138.03,0.2438779]
[1726253709225,15.2922,138.08,138.03,0.2438779]
[1726253710442,15.2922,138.08,138.03,1.69265826]
[1726253710652,15.2922,138.08,138.03,0.2438779]
[1726253711342,0.25098,138.07,138.03,0.2438779]
[1726253711542,0.37647,138.07,138.03,0.2438779]
[1726253713342,22.5344,138.08,138.03,0.2438779]
[1726253713343,15.2922,138.08,138.03,0.2438779]
[1726253713730,16.6399,138.11,138.03,0.2438779]
[1726253715026,0.37647,138.1,138.03,0.2438779]
[1726253717154,31.394554,138.1,138.03,0.2438779]
[1726253719253,24.153354,138.1,138.03,0.2438779]
[1726253719443,31.394554,138.1,138.03,0.2438779]
[1726253719758,0.25098,138.08,138.03,0.2438779]
[1726253719933,0.12549,138.07,138.03,0.2438779]
[1726253723835,0.12549,138.06,138.03,0.2438779]
[1726253725138,0.12549,138.07,138.03,0.2438779]
[1726253725458,7.13468104,138.1,138.03,0.2438779]
[1726253725753,7.13468104,138.1,138.03,6.5639779]
[1726253727141,7.13468104,138.1,138.04,23.776884]
[1726253727459,7.13468104,138.1,138.03,6.5639779]
[1726253727831,7.13468104,138.1,138.04,23.776884]
[1726253728649,7.13468104,138.1,138.03,6.5639779]
[1726253728954,0.12549,138.09,138.03,6.5639779]
[1726253729153,0.25098,138.09,138.03,6.5639779]
[1726253733657,0.12549,138.08,138.03,0.2438779]
[1726253733956,0.12549,138.07,138.03,0.2438779]
[1726253735451,0.12549,138.06,138.03,0.2438779]
[1726253735771,0.25098,138.06,138.03,0.2438779]
[1726253735971,0.12549,138.05,138.03,0.2438779]
[1726253736162,0.25098,138.05,138.03,0.2438779]
[1726253740567,0.25098,138.05,137.99,0.2561221]
[1726253740568,0.12549,138.03,137.99,0.2561221]
[1726253740761,0.12549,138.01,137.99,0.2561221]
[1726253740960,0.25098,138.01,137.99,0.2561221]
[1726253745179,0.25098,138.03,137.99,0.2561221]
[1726253748456,7.49588,138.03,137.99,0.2561221]
[1726253748662,0.12549,138.02,137.99,0.2561221]
[1726253751380,7.37089,138.02,137.99,0.2561221]
[1726253751583,0.12549,138.01,137.99,0.2561221]
[1726253756558,0.12549,138.02,137.99,0.2561221]
[1726253756764,11.02451367,138.05,137.99,0.2561221]
[1726253757064,7.74236137,138.05,137.99,0.2561221]
[1726253757461,7.74236137,138.05,137.99,24.0330061]
[1726253757683,7.2417,138.09,137.99,24.0330061]
[1726253757870,14.98406137,138.09,137.99,24.0330061]
[1726253758062,7.2422,138.08,137.99,24.0330061]
[1726253758264,7.2429,138.07,137.99,0.2561221]
[1726253758776,0.25098,138.06,137.99,24.0330061]
[1726253760666,0.25098,138.06,137.99,0.2561221]
[1726253760987,0.12549,138.04,137.99,0.2561221]
[1726253764386,7.74236137,138.09,137.99,39.60850462]
[1726253764988,7.74236137,138.09,138.0,14.12627945]
[1726253765293,14.98406137,138.09,138.02,15.6298]
[1726253766285,0.12549,138.07,138.02,15.6298]
[1726253766480,0.25098,138.07,138.02,15.6298]
[1726253766990,0.12549,138.07,138.02,15.6298]
[1726253767289,7.86785137,138.09,138.02,15.6298]
[1726253767491,0.12549,138.08,138.02,15.6298]
[1726253767993,0.12549,138.08,138.03,6.2127]
[1726253770493,0.12549,138.06,138.02,15.6298]
[1726253770697,0.25098,138.06,138.02,15.6298]
[1726253771563,0.12549,138.06,138.02,15.6298]
[1726253771787,0.37647,138.07,138.02,15.6298]
[1726253774292,0.25098,138.07,138.02,15.6298]
[1726253774475,0.37647,138.08,138.02,15.6298]
[1726253775477,0.12549,138.06,138.02,15.6298]
[1726253775671,0.25098,138.06,138.02,15.6298]
[1726253776203,0.12549,138.07,138.02,15.6298]
[1726253776500,0.25098,138.07,138.02,15.6298]
[1726253778993,7.74236137,138.09,138.02,15.6298]
[1726253779195,0.12549,138.08,138.02,15.6298]
[1726253779495,0.12549,138.07,138.02,15.6298]
[1726253779697,7.36859,138.07,138.02,15.6298]
[1726253779871,0.12549,138.05,138.02,15.6298]
[1726253780284,0.12549,138.04,138.02,15.6298]
[1726253780608,0.25098,138.04,138.02,15.6298]
[1726253784274,0.12549,138.04,138.02,15.6298]
[1726253784479,0.25098,138.06,138.02,15.6298]
[1726253784686,0.25098,138.05,138.02,15.6298]
[1726253785084,7.74236137,138.07,138.02,15.6298]
[1726253785298,7.74236137,138.07,138.03,6.4626]
[1726253785491,14.98306137,138.11,138.03,6.4626]
[1726253786103,7.74236137,138.11,138.03,6.4626]
[1726253786991,7.74236137,138.11,138.04,23.776884]
[1726253790789,7.74236137,138.11,138.05,15.733]
[1726253791109,0.2561221,138.13,138.06,6.3529]
[1726253792918,7.4957221,138.13,138.06,6.3529]
[1726253794016,0.25098,138.12,138.06,6.3529]
[1726253794309,0.12549,138.12,138.06,6.3529]
[1726253794708,0.25098,138.12,138.06,6.3529]
[1726253795717,7.49108,138.12,138.06,6.3529]
[1726253796591,7.2414,138.1,138.06,6.3529]
[1726253796993,7.99334137,138.12,138.06,6.3529]
[1726253798315,15.23344137,138.12,138.06,6.3529]
[1726253798832,7.2407,138.11,138.06,6.3529]
[1726253800913,0.12549,138.1,138.06,6.3529]
[1726253801302,0.12549,138.11,138.06,6.3529]
[1726253801887,7.99334137,138.12,138.06,6.3529]
[1726253802516,7.86785137,138.12,138.06,6.3529]
[1726253805395,7.74236137,138.12,138.06,6.3529]
[1726253806693,0.12549,138.11,138.06,6.3529]
[1726253809020,0.25098,138.11,138.06,6.3529]
[1726253821829,7.74236137,138.12,138.06,6.3529]
[1726253823425,14.98236137,138.12,138.06,6.3529]
[1726253824010,7.74236137,138.12,138.06,6.3529]
[1726253833315,0.25098,138.11,138.06,6.3529]
[1726253833521,7.61747,138.11,138.06,6.3529]
[1726253834024,0.37647,138.11,138.06,6.3529]
[1726253834325,0.2561221,138.13,138.11,15.2168]
[1726253834533,8.1239731,138.18,138.11,15.2168]
[1726253834534,17.44724354,138.18,138.12,14.12627945]
[1726253834724,17.44724354,138.18,138.13,37.90316345]
[1726253834725,17.03494102,138.18,138.13,37.90316345]
[1726253834913,0.2561221,138.18,138.14,1.32470582]
[1726253835107,0.2561221,138.18,138.14,20.69667945]
[1726253835304,0.2561221,138.18,138.15,15.2229]
[1726253836624,0.12549,138.17,138.15,15.2229]
[1726253836821,0.25098,138.17,138.15,15.2229]
[1726253838024,0.12549,138.16,138.15,15.2229]
[1726253838210,0.37647,138.16,138.15,15.2229]
[1726253838828,0.12549,138.15,138.12,15.9017]
[1726253839015,0.25098,138.15,138.12,15.9017]
[1726253844347,0.25098,138.15,138.1,6.2413]
[1726253844348,0.12549,138.14,138.1,6.2413]
[1726253844641,0.12549,138.13,138.09,16.2975]
[1726253844825,0.12549,138.12,138.09,16.2975]
[1726253845008,0.25098,138.12,138.09,16.2975]
[1726253845213,0.12549,138.11,138.09,16.2975]
[1726253845438,0.25098,138.11,138.09,16.2975]
[1726253846238,0.12549,138.11,138.09,16.2975]
[1726253849848,0.25098,138.11,138.07,6.1101]
[1726253855232,0.12549,138.11,138.07,7.55853026]
[1726253855433,7.80734002,138.18,138.08,1.44833504]
[1726253855727,0.2561221,138.18,138.07,20.23637945]
[1726253856131,0.2561221,138.18,138.08,1.44811833]
[1726253856344,7.238,138.16,138.08,1.44811833]
[1726253856516,7.238,138.16,138.07,20.23637945]
[1726253856718,0.25098,138.14,138.07,20.23637945]
[1726253856953,0.25098,138.14,138.08,1.44814567]
[1726253858252,0.25098,138.14,138.08,15.57442512]
[1726253858840,0.25098,138.14,138.07,20.23637945]
[1726253860232,0.25098,138.14,138.08,1.44730337]
[1726253860750,0.25098,138.14,138.07,6.1101]
[1726253860930,0.12549,138.13,138.07,6.1101]
[1726253866951,0.25098,138.12,138.07,6.1101]
[1726253867130,0.12549,138.11,138.07,6.1101]
[1726253867336,0.25098,138.11,138.07,6.1101]
[1726253867537,0.12549,138.1,138.07,6.1101]
[1726253868332,0.25098,138.11,138.07,6.1101]
[1726253868526,0.12549,138.11,138.07,6.1101]
[1726253869056,0.37647,138.12,138.07,6.1101]
[1726253876456,0.25098,138.12,138.07,6.1101]
[1726253876654,0.37647,138.13,138.07,6.1101]
[1726253878741,31.393054,138.13,138.07,6.1101]
[1726253881037,24.153354,138.13,138.06,16.1944]
[1726253881543,7.2415,138.1,138.03,23.2961221]
[1726253881743,0.37647,138.09,138.03,23.2961221]
[1726253884061,7.61817,138.09,138.03,23.2961221]
[1726253886473,0.25098,138.07,138.03,16.8275221]
[1726253886641,0.12549,138.06,138.03,0.2561221]
[1726253890580,23.776884,138.11,138.03,0.2561221]
[1726253890799,7.2417,138.09,138.03,0.2561221]
[1726253891084,0.12549,138.08,138.03,0.2561221]
[1726253891261,7.2417,138.09,138.03,0.2561221]
[1726253891455,7.2413,138.1,138.03,0.2561221]
[1726253892789,0.37647,138.09,138.03,0.2561221]
[1726253893990,7.61827,138.09,138.03,0.2561221]
[1726253899267,0.25098,138.07,138.03,0.2561221]
[1726253900400,0.12549,138.06,138.03,0.2561221]
[1726253900874,7.49478,138.05,138.03,0.2561221]
[1726253901066,7.62067,138.04,138.03,0.2561221]
[1726253901265,0.37647,138.04,138.03,0.2561221]
[1726253904889,7.62067,138.04,138.03,0.2561221]
[1726253908078,31.397554,138.04,138.03,0.2561221]
[1726253908710,31.397554,138.04,137.99,0.2561221]
[1726253908711,0.25098,138.01,137.99,0.2561221]
[1726253909002,0.12549,138.0,137.99,0.2561221]
[1726253910375,0.25098,138.02,137.99,0.2561221]
[1726253910681,0.12549,138.01,137.99,0.2561221]
[1726253911407,0.25098,138.02,137.99,0.2561221]
[1726253911799,0.12549,138.02,137.99,0.2561221]
[1726253912608,0.12549,138.03,137.99,0.2561221]
[1726253912785,10.46820699,138.06,137.99,0.2561221]
[1726253912986,7.36919,138.05,137.99,0.2561221]
[1726253913906,0.25098,138.04,137.99,0.2561221]
[1726253914083,0.12549,138.06,138.0,6.2674]
[1726253914285,10.57699113,138.08,138.0,6.2674]
[1726253914612,7.2422,138.08,138.0,6.2674]
[1726253915596,0.37647,138.07,138.0,6.2674]
[1726253917533,7.61917,138.07,138.0,6.2674]
[1726253921799,0.37647,138.07,138.0,6.2674]
[1726253924227,0.37647,138.07,138.01,16.4505]
[1726253928635,7.61937,138.07,138.01,16.4505]
[1726253928961,0.37647,138.07,138.01,16.4505]
[1726253931213,0.25098,138.03,138.01,16.4505]
[1726253932307,0.25098,138.03,138.0,6.2674]
[1726253932524,0.12549,138.02,138.0,6.2674]
[1726253934544,0.12549,138.02,137.99,0.2561221]
[1726253935415,0.25098,138.01,137.99,0.2561221]
[1726253935622,0.12549,138.0,137.99,0.2561221]
[1726253943047,7.2449,138.06,137.99,0.2561221]
[1726253943222,7.2441,138.05,137.99,0.2561221]
[1726253944324,0.25098,138.04,137.99,0.2561221]
[1726253944639,0.37647,138.04,137.99,0.2561221]
[1726253945641,0.12549,138.04,137.99,0.2561221]
[1726253945834,7.2433,138.06,137.99,0.2561221]
[1726253946842,0.25098,138.05,137.99,0.2561221]
[1726253947222,0.12549,138.04,137.99,0.2561221]
[1726253948623,7.2433,138.06,138.0,6.557]
[1726253948832,6.2551067,138.1,138.01,29.82157945]
[1726253949041,13.4966067,138.1,138.01,16.60617635]
[1726253949438,16.78911124,138.1,138.01,16.60617635]
[1726253949918,7.2416,138.09,138.01,16.60617635]
[1726253950119,0.25098,138.08,138.01,16.60617635]
[1726253950351,0.12549,138.07,138.01,15.6953]
[1726253955632,7.36829,138.07,138.01,15.6953]
[1726253955831,0.25098,138.06,138.01,15.6953]
[1726253956355,0.12549,138.05,138.01,15.6953]
[1726253956856,0.25098,138.05,138.01,15.6953]
[1726253962741,0.25098,138.08,138.01,15.6953]
[1726253962947,0.25098,138.07,138.01,15.6953]
[1726253967665,0.12549,138.06,138.01,15.6953]
[1726253967860,0.25098,138.06,138.01,15.6953]
[1726253968045,0.25098,138.05,138.01,15.6953]
[1726253970262,0.25098,138.04,138.01,15.6953]
[1726253970463,0.12549,138.04,138.01,15.6953]
[1726253974570,0.12549,138.05,138.01,17.14443616]
[1726253974741,0.37647,138.06,138.01,17.14443616]
[1726253975077,0.37647,138.06,138.01,15.6953]
[1726253979669,7.61967,138.06,138.01,15.6953]
[1726253979973,0.37647,138.06,138.01,15.6953]
[1726253980769,0.37647,138.06,138.02,1.44888553]
[1726253981357,0.37647,138.06,138.01,15.6953]
[1726253982351,0.37647,138.06,138.01,17.14323942]
[1726253982673,0.37647,138.06,138.01,15.6953]
[1726253988080,7.2437,138.05,138.01,15.6953]
[1726253988263,0.37647,138.04,138.01,15.6953]
[1726253988769,0.25098,138.08,138.01,15.6953]
[1726253988970,0.12549,138.07,138.01,15.6953]
[1726253990379,0.12549,138.07,138.02,1.4480649]
[1726253990559,0.12549,138.07,138.01,15.6953]
[1726253992851,0.25098,138.06,138.01,15.6953]
[1726253993057,0.12549,138.05,138.01,15.6953]
[1726253994375,0.25098,138.04,138.01,15.6953]
[1726253994570,0.12549,138.03,138.01,15.6953]
[1726254000475,7.49728,138.0,137.99,0.2561221]
[1726254000674,0.37647,138.0,137.99,0.2561221]
[1726254001580,0.12549,138.02,137.99,0.2561221]
[1726254002360,0.25098,138.03,137.99,0.2561221]
[1726254002560,0.25098,138.04,137.99,0.2561221]
[1726254002778,16.79674707,138.06,137.99,0.2561221]
[1726254002979,13.51413339,138.06,137.99,0.2561221]
[1726254003489,7.2433,138.06,138.0,16.1803]
[1726254003984,7.2433,138.06,138.01,6.3011]
[1726254004278,7.2427,138.07,138.01,6.3011]
[1726254004470,7.2427,138.07,138.01,7.75012426]
[1726254004671,7.2423,138.08,138.01,6.3011]
[1726254004869,7.2418,138.09,138.01,6.3011]
[1726254005582,7.2412,138.1,138.02,17.25843328]
[1726254005796,0.2561221,138.13,138.02,15.8096]
[1726254006085,7.2417,138.09,138.02,15.8096]
[1726254006293,3.42982597,138.13,138.03,7.10620765]
[1726254006583,7.2402,138.12,138.04,16.0307]
[1726254006885,7.4958221,138.13,138.05,1.4485904]
[1726254007084,7.4958221,138.13,138.04,16.0307]
[1726254007291,7.4958221,138.13,138.05,22.02772748]
[1726254007292,0.2561221,138.13,138.05,22.02772748]
[1726254007601,0.2561221,138.13,138.05,20.57997945]
[1726254007789,0.2561221,138.13,138.07,14.12627945]
[1726254008086,0.2561221,138.13,138.09,15.7847]
[1726254008262,0.2561221,138.13,138.1,1.44794878]
[1726254008593,0.2561221,138.13,138.09,15.7847]
[1726254009077,0.2561221,138.13,138.09,17.23281595]
[1726254009470,0.2561221,138.13,138.09,31.3590954]
[1726254009858,0.2561221,138.13,138.1,14.12627945]
[1726254010161,0.2561221,138.13,138.11,1.44788714]
[1726254010362,0.2561221,138.13,138.12,22.1829]
[1726254012682,0.2561221,138.13,138.12,45.959784]
[1726254012882,0.2561221,138.18,138.13,23.776884]
[1726254013064,0.2561221,138.18,138.12,22.1829]
[1726254015802,0.2561221,138.18,138.13,23.776884]
[1726254015969,0.2561221,138.18,138.12,22.1829]
[1726254018310,0.2561221,138.18,138.13,23.776884]
[1726254018598,0.2561221,138.18,138.12,22.1829]
[1726254019697,0.2561221,138.18,138.13,23.776884]
[1726254021008,0.2561221,138.18,138.15,23.776884]
[1726254025606,0.2561221,138.18,138.14,22.2077]
[1726254029606,0.2561221,138.18,138.15,1.38915013]
[1726254030203,0.2561221,138.18,138.15,23.776884]
[1726254033804,0.2561221,138.18,138.14,22.2077]
[1726254035185,0.2561221,138.18,138.15,23.776884]
[1726254037092,0.2561221,138.18,138.14,22.2077]
[1726254039919,0.2561221,138.18,138.15,1.44730194]
[1726254040708,0.2561221,138.18,138.16,23.776884]
[1726254040904,0.2561221,138.18,138.17,1.44713478]
[1726254041412,0.2561221,138.18,138.15,23.776884]
[1726254041714,0.2561221,138.18,138.14,22.2077]
[1726254042902,0.2561221,138.18,138.15,23.776884]
[1726254043298,0.2561221,138.18,138.1,22.3559]
[1726254044805,0.12549,138.17,138.1,22.3559]
[1726254046205,0.12549,138.17,138.11,23.776884]
[1726254046520,0.25098,138.17,138.11,23.776884]
[1726254047399,7.2383,138.16,138.11,23.776884]
[1726254047723,0.25098,138.17,138.07,6.5432]
[1726254047724,7.48888,138.17,138.07,6.5432]
[1726254047896,0.25098,138.16,138.07,6.5432]
[1726254048091,7.36399,138.15,138.07,6.5432]
[1726254048394,7.36399,138.15,138.06,16.1674]
[1726254048395,0.12549,138.13,138.06,16.1674]
[1726254048591,0.25098,138.13,138.07,1.44732133]
[1726254048795,0.25098,138.13,138.08,1.44814935]
[1726254049092,0.25098,138.13,138.03,0.2561221]
[1726254049293,0.25098,138.11,138.03,0.2561221]
[1726254049600,0.12549,138.09,138.03,0.2561221]
[1726254051226,0.12549,138.09,138.03,1.70462864]
[1726254052312,0.12549,138.09,138.04,23.776884]
[1726254052518,0.12549,138.09,138.05,1.44850444]
[1726254055724,0.12549,138.09,138.04,23.776884]
[1726254055916,0.12549,138.11,138.05,1.44850198]